Cogmind - Beta 13 @@@ ROGUE MODE // 2024.05.05 @ 18:20:59 Player: Some Pennies Result: Destroyed by Y-45 Defender with Beam Rifle Performance ------------- Evolutions (2) 1000 Regions Visited (8) 1600 Robots Destroyed (206) 1030 Value Destroyed (7369) 7369 Prototype IDs (14) 280 Alien Tech Used (0) 0 Bonus (3133) 3133 TOTAL SCORE: 14412 Bonus ------- High Alert Combat Kills 1138 Follower Combat Kills 232 Entered Garrisons 400 Used RIF Installer 1500 Friendly Fire -137 Cogmind --------- Core Integrity 0/550 Matter 206/300 Energy 257/280 System Corruption 1% Temperature Cool (27) Movement Treading (225) Ox1 Location -8/Garrison Parts ------- > --- POWER (1) -------- Heavy Ion Engine > --- PROPULSION (4) --- Advanced Treads Advanced Treads Advanced Treads Advanced Treads > --- UTILITY (4) ------ Advanced Heat Sink Advanced Heat Sink Huge Storage Unit Hacking Suite > --- WEAPON (2) ------- Gauss Rifle Missile Launcher > --- INVENTORY (25) --- Heavy Ion Engine Advanced Treads Advanced Treads Structural Scanner Machine Analyzer Launcher Guidance Computer Hacking Suite Hacking Suite Hacking Suite Relay Coupler [NC] (28) Relay Coupler [Duelist] (24) Relay Coupler [Sentry] (19) Relay Coupler [Demolisher] (20) Relay Coupler [Hunter] (17) Relay Coupler [Behemoth] (10) Long-range Tractor Beam Heavy Particle Cannon Gauss Rifle Improved Datajack Plasma Cutter Scythe Peak State ------------ > --- POWER ------------ Light Nuclear Core > --- PROPULSION ------- Light Treads Armored Treads Medium Treads Medium Treads > --- UTILITY ---------- Huge Storage Unit Hardened Heavy Armor Plating Hacking Suite > --- WEAPON ----------- Enhanced Autogun Enhanced Autogun > --- INVENTORY -------- Improved Ion Engine Armored Treads Advanced Treads Medium Treads Medium Treads Improved Heat Sink Advanced Heat Sink Structural Scanner Improved Sensor Array Improved Signal Interpreter Launcher Guidance Computer Hardened Heavy Armor Plating Hardened Heavy Armor Plating Hacking Suite Hacking Suite Dynamic Insulation System Long-range Tractor Beam Heavy Particle Cannon Enhanced Autogun Assault Cannon Missile Launcher Improved Datajack Scythe [Rating: 43] Favorites ----------- Power Improved Ion Engine Engine Improved Ion Engine Power Core Light Nuclear Core Propulsion Light Treads Treads Light Treads Utility Hacking Suite Device Structural Scanner Storage Huge Storage Unit Processor Transport Network Coupler Hackware Hacking Suite Protection Hardened Heavy Armor Plating Weapon Enhanced Autogun Energy Gun Heavy EM Shotgun Energy Cannon Beam Cannon Ballistic Gun Enhanced Autogun Ballistic Cannon Assault Cannon Launcher Missile Launcher Special Weapon Mining Laser Slashing Weapon Scythe Special Melee Weapon Improved Datajack Build | -11 -10 -10 -10 -9 -8 -8 -8 -8 ------- Run | Yrd Mat Min Exi Min Mat Gar Mat Gar Slots Evolved 4 | . . . . . 4 . . . Power . | . . . . . . . . . Propulsion 2 | . . . . . 2 . . . Utility 2 | . . . . . 2 . . . Weapon . | . . . . . . . . . Parts Attached 142 | 7 13 2 . 3 57 11 36 13 Power 15 | 1 3 . . 1 4 . 5 1 Engine 12 | 1 3 . . 1 2 . 4 1 Core 3 | . . . . . 2 . 1 . Reactor . | . . . . . . . . . Propulsion 36 | 2 2 . . 2 12 3 11 4 Treads 36 | 2 2 . . 2 12 3 11 4 Leg . | . . . . . . . . . Wheel . | . . . . . . . . . Hover . | . . . . . . . . . Flight . | . . . . . . . . . Utility 40 | 2 4 . . . 24 3 5 2 Device 20 | 1 1 . . . 14 1 1 2 Storage 4 | 1 2 . . . 1 . . . Processor 1 | . . . . . 1 . . . Hackware 2 | . 1 . . . . . 1 . Protection 13 | . . . . . 8 2 3 . Artifact . | . . . . . . . . . Weapon 51 | 2 4 2 . . 17 5 15 6 Energy Gun 3 | . . . . . 3 . . . Energy Cannon 3 | . . 1 . . 1 . 1 . Ballistic Gun 31 | 2 2 1 . . 12 3 8 3 Ballistic Cannon 2 | . . . . . . . 2 . Launcher 4 | . . . . . 1 . 1 2 Special Weapon 2 | . 2 . . . . . . . Impact Weapon . | . . . . . . . . . Slashing Weapon 3 | . . . . . . 2 . 1 Piercing Weapon . | . . . . . . . . . Special Melee Weapon 3 | . . . . . . . 3 . Unidentified Prototypes 9 | . . . . . 7 . 2 . Parts Lost 13 | . . . . . 7 3 1 2 Power 2 | . . . . . 2 . . . Propulsion 5 | . . . . . 2 2 1 . Utility 3 | . . . . . 1 1 . 1 Weapon 3 | . . . . . 2 . . 1 Highest Loss Streak 6 | . . . . . 6 1 1 1 To Critical Strikes 1 | . . . . . . 1 . . Average Slot Usage (%) 94 | . 100 100 100 99 95 90 92 90 Engine 9 | . 14 14 14 13 6 9 8 9 Treads 34 | . 28 28 28 28 35 36 35 36 Device 3 | . 11 . . . 5 . 1 . Storage 10 | . 14 14 14 14 9 9 9 9 Hackware 9 | . 2 14 14 14 9 9 10 9 Protection 6 | . . . . . 8 9 6 8 Energy Cannon 1 | . . 2 14 14 2 . . . Ballistic Gun 16 | . 26 25 14 14 15 16 11 17 Ballistic Cannon 1 | . . . . . . . 6 . Naked Turns . | . . . . . . . . . Heaviest Build 118 | 12 30 30 30 34 117 113 118 116 Greatest Support 96 | 40 40 40 40 40 96 96 96 88 Greatest Overweight (x) 1 | . . . . . 1 1 1 1 Average Overweight (x) . | . . . . . . 1 . 1 Largest Inventory Capacity 25 | 8 15 15 15 15 25 25 25 25 Average Capacity 21 | 7 14 15 15 15 21 25 25 25 Most Carried 25 | 8 15 15 15 15 25 25 25 25 Average Carried 20 | 4 13 14 15 14 18 24 24 24 Final Capacity 25 | 8 15 15 15 15 25 25 25 25 Final Carried 25 | 8 15 15 15 15 25 24 25 21 Class Distribution -------------------- 37% | Mutant 35% | Bothacker-Mutant 26% | Scavenger-Mutant Dominant Class ---------------- Mutant | -10/Materials Mutant | -10/Mines Mutant | -10/Exiles Mutant | -9/Mines Scavenger-Mutant | -8/Materials Mutant | -8/Garrison Bothacker-Mutant | -8/Materials Bothacker-Mutant | -8/Garrison Resources | -11 -10 -10 -10 -9 -8 -8 -8 -8 ----------- Run | Yrd Mat Min Exi Min Mat Gar Mat Gar Matter Collected 5268 | 308 382 124 . 100 1796 594 1508 456 Remotely . | . . . . . . . . . Salvage Created 7730 | 177 649 334 . 354 2386 1003 2050 777 Parts 450 | 18 47 11 . 15 149 62 109 39 Haulers Intercepted 13 | . 2 . . . 6 . 5 . Recyclers Shooed 5 | . 2 . . 1 1 . 1 . Parts Field Recycled . | . . . . . . . . . Retrieved Matter . | . . . . . . . . . Parts Self-Destructed . | . . . . . . . . . Prevented . | . . . . . . . . . Kills | -11 -10 -10 -10 -9 -8 -8 -8 -8 ------- Run | Yrd Mat Min Exi Min Mat Gar Mat Gar Combat Hostiles Destroyed 142 | . 12 3 . 6 40 24 36 21 Melee 2 | . . . . . . . . 2 Guns 109 | . 10 3 . 4 34 24 19 15 Cannons 21 | . . . . 2 5 . 14 . AOE 9 | . 2 . . . . . 3 4 Classes Destroyed 15 | 2 6 . . . 6 . 1 . Worker 10 | . 2 1 . . 4 . 3 . Builder 7 | . . . . . 5 . 2 . Tunneler 7 | 5 . 1 . . . . 1 . Hauler 13 | . 2 . . . 6 . 5 . Recycler 7 | 1 1 3 . 2 . . . . Mechanic 1 | . . . . . 1 . . . Operator 6 | . 2 . . . 3 . 1 . Watcher 12 | . 3 . . . 4 . 5 . Swarmer 34 | . 6 . . 4 8 7 3 6 Grunt 76 | . 6 3 . 2 19 13 19 14 Duelist 3 | . . . . . . . 3 . Sentry 21 | . . . . . 8 4 8 1 Specialist 2 | . . . . . 2 . . . Hunter 5 | . . . . . 2 . 3 . Heavy 1 | . . . . . 1 . . . Thug 1 | . . . . 1 . . . . Best Kill Streak 5 | 2 4 2 . 4 5 5 5 4 Combat Bots Only 5 | . 3 2 . 4 4 5 4 4 Max Kills in Single Turn 3 | 1 2 1 . 2 2 2 3 2 Gunslinging 1 | . . . . . . 1 . . Exploded 3 | . 2 . . . . . 3 2 Melee 1 | . . . . . . . . 1 Uniques/NPCs Destroyed . | . . . . . . . . . Combat | -11 -10 -10 -10 -9 -8 -8 -8 -8 -------- Run | Yrd Mat Min Exi Min Mat Gar Mat Gar Hostile Shots Fired 732 | . 43 9 . 28 207 124 167 154 Missed 173 | . 8 5 . 4 52 31 46 27 Damage Taken 8441 | . 345 55 . 264 2835 1234 1938 1770 Core 699 | . 120 . . 26 188 95 124 146 Absorbed by Shields . | . . . . . . . . . Core Remaining (%) 70 | 100 . . . 41 . . . . Volleys Fired 519 | 13 50 14 . 15 176 63 136 52 Largest 2 | 2 2 2 . 2 2 2 2 2 Hottest 119 | 40 100 84 . 84 100 50 119 64 Shots Fired 1017 | 26 96 28 . 30 347 126 261 103 Gun 874 | 26 92 27 . 15 311 126 176 101 Cannon 136 | . . 1 . 15 36 . 84 . Launcher 3 | . . . . . . . 1 2 Special 4 | . 4 . . . . . . . Kinetic 952 | 26 92 27 . 15 311 126 254 101 Thermal 62 | . 4 1 . 15 36 . 6 . Explosive 3 | . . . . . . . 1 2 Electromagnetic . | . . . . . . . . . Robot Hit Streak 17 | 4 7 6 . 6 17 13 13 15 Robot Miss Streak 9 | 3 3 4 . 5 9 4 3 2 Penetration Max 1 | . . . . . 1 . 1 . Secondary Targets 14 | . 1 . . . 5 6 . 2 Max Gunslinging Chain 1 | . 1 . . . 1 1 . 1 Shots Hit Robots 658 | 14 56 23 . 17 208 78 185 77 Core Hits 327 | 10 33 16 . 11 96 41 85 35 Critical Kills 8 | . . . . . 4 . 4 . Critical Parts Destroyed 7 | . 2 . . . . . 4 1 Critical Strikes 18 | . 2 . . . 4 . 11 1 Meltdown 1 | . . . . . 1 . . . Destroy 14 | . 2 . . . 3 . 8 1 Blast 3 | . . . . . . . 3 . Melee Attacks 18 | . . . . . . 4 5 9 Impact . | . . . . . . . . . Slashing 13 | . . . . . . 4 . 9 Piercing . | . . . . . . . . . Sneak Attacks 5 | . . . . . . . 5 . Combat Hostiles . | . . . . . . . . . Follow-up Attacks . | . . . . . . . . . Damage Inflicted 13345 | 138 757 409 . 374 4103 1458 3977 2129 Guns 10336 | 138 678 392 . 212 3430 1458 2460 1568 Cannons 2229 | . . 17 . 162 673 . 1377 . Explosions 612 | . 79 . . . . . 140 393 Melee 168 | . . . . . . . . 168 Ramming . | . . . . . . . . . Kinetic 11634 | 138 678 392 . 212 3430 1458 3758 1568 Thermal 961 | . 30 17 . 162 673 . 79 . Explosive 533 | . . . . . . . 140 393 Electromagnetic 49 | . 49 . . . . . . . Impact . | . . . . . . . . . Slashing 168 | . . . . . . . . 168 Piercing . | . . . . . . . . . Highest Corruption 1 | . . . . . . . 1 1 Average Corruption 1 | . . . . . . . 1 1 Corruption Purged . | . . . . . . . . . Corruption Blocked . | . . . . . . . . . Effects 34 | . . . . . . . 26 8 Message Errors 9 | . . . . . . . 5 4 Matter Fused 5 | . . . . . . . 5 . Heat Flow Errors 3 | . . . . . . . 3 . Energy Discharges 2 | . . . . . . . . 2 Data Loss (minor) 6 | . . . . . . . 5 1 Data Loss (major) 3 | . . . . . . . 3 . Misfires 3 | . . . . . . . 3 . Alerts 1 | . . . . . . . . 1 Weapon Failures 2 | . . . . . . . 2 . Overload Shots . | . . . . . . . . . Overflow Damage 61 | . . . . . . . 33 28 Projectiles 33 | . . . . . . . 33 . Explosions . | . . . . . . . . . Melee 28 | . . . . . . . . 28 Knockbacks 2 | . . . . . . . 2 . Impact . | . . . . . . . . . Kinetic 2 | . . . . . . . 2 . Secondary . | . . . . . . . . . Self-Inflicted Damage 162 | . . . . . 110 . . 52 Shots 2 | . . . . . 1 . . 1 Rammed . | . . . . . . . . . Targets Rammed . | . . . . . . . . . Kicked . | . . . . . . . . . Crushed . | . . . . . . . . . Highest Temperature 437 | . 40 24 . 228 437 275 395 134 Average Temperature 77 | . 11 10 . 76 80 87 88 46 Received Heat Transfer 3243 | . 126 30 . 99 891 594 621 882 Effects 8 | . . . . 1 6 . 1 . Shutdowns 2 | . . . . . 1 . 1 . Energy Bleed 2 | . . . . 1 1 . . . Interference 3 | . . . . . 3 . . . Damage (minor) 1 | . . . . . 1 . . . Siege Activations . | . . . . . . . . . Robots Corrupted . | . . . . . . . . . Combat Hostiles . | . . . . . . . . . Parts Fried . | . . . . . . . . . Impact Corruptions . | . . . . . . . . . Robots Melted 1 | . . . . . 1 . . . Combat Hostiles 1 | . . . . . 1 . . . Parts Melted 4 | . . . . 1 3 . . . Heat Transferred 1567 | . 50 37 . 333 1036 . 111 . Parts Sabotaged . | . . . . . . . . . Parts Stolen . | . . . . . . . . . Parts Stripped . | . . . . . . . . . Power Chain Reactions 2 | . 2 . . . . . . . Alert | -11 -10 -10 -10 -9 -8 -8 -8 -8 ------- Run | Yrd Mat Min Exi Min Mat Gar Mat Gar Peak Influence 2012 | 30 194 68 . 169 522 2012 980 1231 Initial 980 | . 19 13 . . 20 344 980 406 Average 488 | 15 68 30 . 107 259 1131 529 800 Maximum Alert Level 5 | . . . . . 2 5 3 4 Low Security (%) 29 | 100 100 100 . 100 34 . . . Level 1 19 | . . . . . 49 9 15 . Level 2 30 | . . . . . 16 14 81 26 Level 3 9 | . . . . . . 16 3 56 Level 4 8 | . . . . . . 40 . 17 Level 5 3 | . . . . . . 18 . . High Security . | . . . . . . . . . Max Security . | . . . . . . . . . Squads Dispatched 15 | . 2 . . . 8 . 5 . Investigation 2 | . 1 . . . 1 . . . Extermination . | . . . . . . . . . Reinforcement 9 | . 1 . . . 5 . 3 . Assault 2 | . . . . . . . 2 . Garrison 2 | . . . . . 2 . . . Intercept . | . . . . . . . . . Searches Triggered . | . . . . . . . . . Construction Impeded 1 | . . . . . . . 1 . Haulers Reinforced . | . . . . . . . . . Active Scanning Responses . | . . . . . . . . . Cargo Convoy Interrupts . | . . . . . . . . . Stealth | -11 -10 -10 -10 -9 -8 -8 -8 -8 --------- Run | Yrd Mat Min Exi Min Mat Gar Mat Gar Distress Signals 6 | . . . . . 4 . 2 . Communications Jammed . | . . . . . . . . . Distress Signals . | . . . . . . . . . Times Spotted 209 | . 19 4 . 8 67 32 50 29 Peak Tracking Total 6 | . 3 2 . 4 4 6 5 6 Tactical Retreats 12 | . . . . . 2 3 2 5 Traps | -11 -10 -10 -10 -9 -8 -8 -8 -8 ------- Run | Yrd Mat Min Exi Min Mat Gar Mat Gar Traps Triggered 20 | . 1 . . . 2 8 3 6 Indirectly . | . . . . . . . . . Trap Hack Attempts . | . . . . . . . . . Triggered . | . . . . . . . . . Disarmed . | . . . . . . . . . Reprogrammed . | . . . . . . . . . Reused . | . . . . . . . . . Traps Extracted . | . . . . . . . . . Installed . | . . . . . . . . . Triggered . | . . . . . . . . . Machines | -11 -10 -10 -10 -9 -8 -8 -8 -8 ---------- Run | Yrd Mat Min Exi Min Mat Gar Mat Gar Machines Disabled 12 | . 2 . . . 2 4 1 3 Max in Single Turn 2 | . 2 . . . 1 1 1 1 Garrison Relay 7 | . . . . . . 4 . 3 Machines Repaired . | . . . . . . . . . Machines Dismantled . | . . . . . . . . . Machines Sabotaged . | . . . . . . . . . Overloaded Fab Kills . | . . . . . . . . . Hacking | -11 -10 -10 -10 -9 -8 -8 -8 -8 --------- Run | Yrd Mat Min Exi Min Mat Gar Mat Gar Machines Accessed 38 | . 7 1 4 1 11 2 11 1 Terminals 27 | . 6 . . 1 9 2 8 1 Fabricators . | . . . . . . . . . Repair Stations . | . . . . . . . . . Recycling Units 3 | . 1 . . . 1 . 1 . Scanalyzers 1 | . . . . . . . 1 . Garrison Access 2 | . . . . . 1 . 1 . Total Hacks 97 | . 19 1 4 4 31 3 34 1 Successful 53 | . 7 1 4 1 18 2 19 1 Failed 42 | . 11 . . 3 13 1 14 . Catastrophic 8 | . 1 . . . 5 . 2 . Database Lockouts 2 | . 1 . . . . . 1 . Manual 39 | . 14 . . 4 16 . 5 . Terminals 77 | . 17 . . 4 26 3 26 1 Fabricators . | . . . . . . . . . Repair Stations . | . . . . . . . . . Recycling Units 7 | . 2 . . . 3 . 2 . Scanalyzers 4 | . . . . . . . 4 . Garrison Access 4 | . . . . . 2 . 2 . Terminal Hacks 42 | . 6 1 4 1 14 2 13 1 Record 6 | . . . 4 . . . 2 . Robot Analysis 8 | . 3 . . . 4 . 1 . Prototype ID Bank 3 | . . . . . 1 . 2 . Open Door 2 | . . 1 . . . 1 . . Branch Access Points 1 | . 1 . . . . . . . Emergency Access Points 3 | . . . . . . . 2 1 Terminal Index 2 | . . . . . 2 . . . Alert Level 3 | . . . . . 3 . . . Unreport Threat 5 | . . . . . 1 . 4 . Locate Traps 3 | . 1 . . . 1 . 1 . Dispatch Records 1 | . . . . . . . 1 . Registered Components 1 | . . . . . 1 . . . Registered Prototypes 1 | . . . . . 1 . . . Zone Layout 2 | . 1 . . 1 . . . . Garrison Registry 1 | . . . . . . 1 . . Fabricator Hacks . | . . . . . . . . . Repair Station Hacks . | . . . . . . . . . Recycling Unit Hacks . | . . . . . . . . . Scanalyzer 4 | . . . . . . . 4 . Insert Component 1 | . . . . . . . 1 . Analyze 3 | . . . . . . . 3 . Garrison Access Hacks 4 | . . . . . 2 . 2 . Unlock Access 2 | . . . . . 1 . 1 . Coupler Status 2 | . . . . . 1 . 1 . Unauthorized Hacks 3 | . 1 . . . 2 . . . Terminals . | . . . . . . . . . Fabricators . | . . . . . . . . . Repair Stations . | . . . . . . . . . Recycling Units 3 | . 1 . . . 2 . . . Monitor 1 | . . . . . 1 . . . Mask 2 | . 1 . . . 1 . . . Scanalyzers . | . . . . . . . . . Garrison Access . | . . . . . . . . . Data Cores Recovered 2 | . 1 . . . 1 . . . Used 1 | . . . . . 1 . . . Hacking Detections 29 | . 7 . . 1 9 2 9 1 Full Trace Events 1 | . . . . . 1 . . . Feedback Events . | . . . . . . . . . Feedback Blocked . | . . . . . . . . . Robot Schematics Acquired . | . . . . . . . . . Robots Built . | . . . . . . . . . Authchips . | . . . . . . . . . Time . | . . . . . . . . . Total Robot Build Rating . | . . . . . . . . . Part Schematics Acquired 1 | . . . . . . . 1 . Parts Built . | . . . . . . . . . Authchips . | . . . . . . . . . Time . | . . . . . . . . . Total Part Build Rating . | . . . . . . . . . Parts Repaired . | . . . . . . . . . Time . | . . . . . . . . . Parts Recycled . | . . . . . . . . . Recycled Matter . | . . . . . . . . . Retrieved Matter . | . . . . . . . . . Retrieved Components . | . . . . . . . . . Parts Scanalyzed 1 | . . . . . . . 1 . Part Schematics Acquired 1 | . . . . . . . 1 . Parts Damaged . | . . . . . . . . . Bothacking | -11 -10 -10 -10 -9 -8 -8 -8 -8 ------------ Run | Yrd Mat Min Exi Min Mat Gar Mat Gar Used RIF Installer 3 | . . . . . . 2 . 1 Robot Detection 1 | . . . . . . 1 . . Watcher Feeds 1 | . . . . . . . . 1 Robots Hacked 3 | . . . . . . . 3 . Non-combat 3 | . . . . . . . 3 . Combat . | . . . . . . . . . Robot Hacks Applied 5 | . . . . . . . 5 . no_distress 1 | . . . . . . . 1 . drop_inventory 2 | . . . . . . . 2 . purge_threat 2 | . . . . . . . 2 . Relay Couplers Released 28 | . . . . . . 16 . 12 Machine Destruction 28 | . . . . . . 16 . 12 Attached 1 | . . . . . . . 1 . Fabnet Peak Effective % . | . . . . . . . . . Robots Rewired . | . . . . . . . . . Allies Hacked . | . . . . . . . . . Hacks Repelled . | . . . . . . . . . Allies | -11 -10 -10 -10 -9 -8 -8 -8 -8 -------- Run | Yrd Mat Min Exi Min Mat Gar Mat Gar Total Allies 7 | . . 3 . 2 . 2 . . Largest Group 3 | . . 3 . 2 1 2 . . Highest-Rated Group 56 | . . 40 . 39 31 56 . . Highest-Rated Ally 31 | . . 16 . 31 31 31 . . Total Orders . | . . . . . . . . . Ally Attacks 79 | . . 16 . 3 37 23 . . Total Damage 1181 | . . 146 . 62 502 471 . . Kills 13 | . . 1 . 2 5 5 . . Allies Corrupted . | . . . . . . . . . Allies Melted 1 | . . 1 . . . . . . Intel | -11 -10 -10 -10 -9 -8 -8 -8 -8 ------- Run | Yrd Mat Min Exi Min Mat Gar Mat Gar Robot Analysis Total 8 | . 3 . . . 4 . 1 . Derelict Logs Recovered 3 | . . 3 . . . . . . Drone Launches 16 | . . . . . 16 . . . Drone Recoveries . | . . . . . . . . . Exploration | -11 -10 -10 -10 -9 -8 -8 -8 -8 ------------- Run | Yrd Mat Min Exi Min Mat Gar Mat Gar Turns Passed 17951 | 153 1755 1151 725 475 4680 2951 4396 1665 Spaces Moved 7679 | 65 937 664 454 252 1883 1113 1666 645 Core 8 | 8 . . . . . . . . Treads 7671 | 57 937 664 454 252 1883 1113 1666 645 Legs . | . . . . . . . . . Wheels . | . . . . . . . . . Hover . | . . . . . . . . . Flight . | . . . . . . . . . Fastest Speed 50 | 50 160 160 160 160 160 242 162 225 Average Speed 203 | 146 160 160 160 160 206 242 229 225 Slowest Speed 243 | 160 160 160 160 160 242 242 243 225 Overloaded Moves . | . . . . . . . . . Propulsion Burnouts . | . . . . . . . . . Robots Hopped . | . . . . . . . . . Cave-ins Triggered . | . . . . . . . . . Exploration Rate (%) 72 | 4 91 98 91 58 90 77 87 60 Regions Visited 8 Branch Regions 3 Pre-discovered Areas 3 | . . 3 . . . . . . Known Exits Taken 3 | . 1 . . . 1 . 1 . Unknown Exits Taken 4 | 1 . 1 1 1 . . . . Scrap Searched 2 | . . 1 . 1 . . . . Spaces Dug 4 | . 4 . . . . . . . Terrain Destroyed 111 | . 6 . . . 54 . 23 28 Melee . | . . . . . . . . . Projectile 31 | . 4 . . . 7 . 17 3 AOE 80 | . 2 . . . 47 . 6 25 Terrain Rammed . | . . . . . . . . . Walls Destroyed . | . . . . . . . . . Machines Disabled . | . . . . . . . . . Actions | -11 -10 -10 -10 -9 -8 -8 -8 -8 --------- Run | Yrd Mat Min Exi Min Mat Gar Mat Gar Total 9166 | 99 1101 727 453 300 2452 1293 1999 742 Wait 481 | . 57 40 . 5 200 75 102 2 Move 7672 | 64 936 663 453 251 1883 1111 1666 645 Hop . | . . . . . . . . . Pick Up 156 | 15 23 3 . 12 68 10 20 5 Fast Attach 21 | . . . . 1 11 . 9 . Attach 50 | 7 . . . . 30 5 5 3 Detach 9 | . . . . . 6 2 1 . Swap 71 | . 13 2 . 2 16 6 22 10 Drop 149 | . 22 5 . 14 62 7 33 6 Fire 519 | 13 50 14 . 15 176 63 136 52 Melee 18 | . . . . . . 4 5 9 Ram . | . . . . . . . . . Kick . | . . . . . . . . . Crush . | . . . . . . . . . Escape Stasis 20 | . . . . . . 10 . 10 Rewire . | . . . . . . . . . Trap . | . . . . . . . . . Miscellaneous . | . . . . . . . . . Route ------- -11/Scrapyard -10/Materials (discovered 4 exits: [*Mat x3] / *Min) -10/Mines (discovered 3 exits: [*Mat x2] / *Exi) -10/Exiles (discovered 2 exits: *Min x2) -9/Mines -8/Materials (discovered 4 exits: [*Fac x3] / Gar) -8/Garrison (discovered 4 exits: *Mat x4) -8/Materials (discovered 3 exits: [*Fac x2] / Gar) -8/Garrison (discovered 3 exits: [*Fac x3]) History --------- Turn | Location | Event 5 | -11/Scrapyard | Discovered new exit (range 16) 154 | -11/Scrapyard | Entered Materials 309 | -10/Materials | Build established: Mutant 589 | -10/Materials | Discovered new exit (range 4) 1001 | -10/Materials | Discovered new exit (range 14) 1434 | -10/Materials | Discovered new exit (range 14) 1608 | -10/Materials | Central database locked down 1608 | -10/Materials | Identified exit to Mines 1909 | -10/Materials | Entered Mines 1946 | -10/Mines | Met a Derelict bent on vengeance 2009 | -10/Mines | A weapon hastily lodged in a ceiling crevice suddenly fell to the ground 2015 | -10/Mines | Learned location of Zion (-6) 2112 | -10/Mines | Assisted by bots powering up and referring to "LRC-V3" 2195 | -10/Mines | Discovered new exit (range 6) 2218 | -10/Mines | Found the Drone Emporium 2227 | -10/Mines | Found Prototype Device 2381 | -10/Mines | Discovered new exit (range 9) 2769 | -10/Mines | Learned location of Storage (-9) 2839 | -10/Mines | Lost 3 allies 3054 | -10/Mines | Deemed a non-threat by the Exiles lab entrance 3054 | -10/Mines | Discovered new exit (range 5) 3060 | -10/Mines | Entered Exiles 3060 | -10/Exiles | Found Exiles lab abandoned 3096 | -10/Exiles | Discovered new exit (range 15) 3771 | -10/Exiles | Discovered new exit (range 10) 3785 | -10/Exiles | Entered Mines 3787 | -9/Mines | Core integrity fell below 50% 4106 | -9/Mines | Discovered new exit (range 3) 4114 | -9/Mines | Joined a pair of Derelicts in attacking an 0b10 outpost 4223 | -9/Mines | Assembled infested the area 4228 | -9/Mines | Assisted by a Guerilla fighting off Assembled 4260 | -9/Mines | Entered Materials 4260 | -8/Materials | Accompanied by 1 ally 4260 | -8/Materials | Evolved 4 slots: Propulsion x2, Utility x2 4265 | -8/Materials | Led the pair of lost Derelicts to an unsafe place 4666 | -8/Materials | Build established: Scavenger-Mutant 4937 | -8/Materials | Discovered new exit (range 9) 5270 | -8/Materials | Build established: Mutant 5511 | -8/Materials | Identified Decoy Drone Bay 6120 | -8/Materials | Build established: Scavenger-Mutant 6293 | -8/Materials | Discovered new exit (range 7) 7642 | -8/Materials | Lost 6 parts (2p1n1u2w) 7688 | -8/Materials | Discovered new exit (range 6) 8796 | -8/Materials | Garrison activated, responded to threat 8940 | -8/Materials | Identified exit to Garrison 8940 | -8/Materials | Entered Garrison 9315 | -8/Garrison | Rescued a captive Derelict 9316 | -8/Garrison | Rescued a captive Derelict 9458 | -8/Garrison | Garrison Relay disabled 9608 | -8/Garrison | Triggered checkpoint 9647 | -8/Garrison | Discovered new exit (range 5) 9822 | -8/Garrison | Triggered checkpoint 9894 | -8/Garrison | Triggered checkpoint 9922 | -8/Garrison | Triggered checkpoint 9999 | -8/Garrison | Discovered new exit (range 13) 10066 | -8/Garrison | Triggered checkpoint 10100 | -8/Garrison | Garrison Relay disabled 10179 | -8/Garrison | Core integrity fell below 50% 10191 | -8/Garrison | Discovered new exit (range 42) 10191 | -8/Garrison | Discovered new exit (range 62) 10191 | -8/Garrison | Discovered new exit (range 30) 10191 | -8/Garrison | Discovered new exit (range 80) 10316 | -8/Garrison | Build established: Mutant 10514 | -8/Garrison | Triggered checkpoint 10616 | -8/Garrison | Garrison Relay disabled 11132 | -8/Garrison | Triggered checkpoint 11152 | -8/Garrison | Garrison Relay disabled 11543 | -8/Garrison | Installed Relay Interface Framework 11834 | -8/Garrison | Expanded RIF knowledge: Robot Detection 11835 | -8/Garrison | Build established: Bothacker-Mutant 11891 | -8/Garrison | Entered Materials 14453 | -8/Materials | Central database locked down 14738 | -8/Materials | Discovered new exit (range 7) 15330 | -8/Materials | Discovered new exit (range 3) 15891 | -8/Materials | First assault squad dispatched 16287 | -8/Materials | Identified exit to Garrison 16287 | -8/Materials | Entered Garrison 16377 | -8/Garrison | Triggered checkpoint 16447 | -8/Garrison | Triggered checkpoint 16508 | -8/Garrison | Triggered checkpoint 16561 | -8/Garrison | Triggered checkpoint 16665 | -8/Garrison | Triggered checkpoint 16758 | -8/Garrison | Expanded RIF knowledge: Watcher Feeds 16853 | -8/Garrison | Discovered new exit (range 10) 16951 | -8/Garrison | Triggered checkpoint 16963 | -8/Garrison | Garrison Relay disabled 17176 | -8/Garrison | Discovered new exit (range 8) 17317 | -8/Garrison | Triggered checkpoint 17378 | -8/Garrison | Garrison Relay disabled 17529 | -8/Garrison | Triggered checkpoint 17538 | -8/Garrison | Core integrity fell below 20% 17591 | -8/Garrison | Triggered checkpoint 17658 | -8/Garrison | Garrison Relay disabled 17895 | -8/Garrison | Discovered new exit (range 13) 17952 | -8/Garrison | Destroyed by Y-45 Defender with Beam Rifle Last Messages --------------- 17663_ Dropped Adv. Treads. 17670_ Acquired Relay Coupler [Hunter]. 17673_ Acquired Relay Coupler [NC]. 17681_ Acquired 8 matter. 17861_ Connecting with Garrison Terminal... 17895_ EXIT=FOUND 17897_ Detecting nearby RIF Installer. 17920_ Destroyed Lgt. Ion Engine. 17920_ S-10 Pest destroyed. 17934_ Critical hit (Burn: +37). 17937_ C-30 ARC bursts open, deploying its payload. 17937_ L-31 Rogue unfolds itself. 17937_ G-47 Trooper unfolds itself. 17937_ Critical hit (Burn: +37). 17942_ Slug penetrates G-47 Trooper. 17946_ Hrd. Heavy Armor Plating destroyed. 17951_ G-47 Trooper destroyed. 17951_ S-10 Pest destroyed. 17952_ Critical hit (Burn: +37). Map ----- +----------------------------------------------------+ | ?????????????????????????????????????????????????? | | ?????????????????????????????????????????????????? | | ?????????????????????????????????????????????????? | | ?????????????????????????????????????????????????? | | ?????????????????????????????????????????????????? | | ?????????????????????????????????????????????????? | | ?????????????????????????????????????????????????? | | ?????????????????????????????????????????????????? | | ??????????????????????????????+??????????????????? | | ?????????????????????????????????????????????????? | | ???????????????????????"""???????????????????????? | | ???????????????????????" "???????????????????????? | | ???????????????????????" "???????????????????????? | | ???????????????????????" "???????????????????????? | | ??????????????????????+? ?+??????????????????????? | | ???????????????????????? ????????????????????????? | | ???????????????????????# #???????????????????????? | | ???????????????????????# #???????????????????????? | | ???????????????????????# #???????????????????????? | | ???????????????????????# ?+?????????????????????? | | ???????????????????????# #???????????+???????????? | | ??????????????????????##g#?##????????????????????? | | ??????????????????????# ## #????????????????????? | | ??????????????????????# l[= ## ###???????????????? | | ???????????# < ######## Y%Y + #???????#++# | | ???????????# *@ #### #????????????# | | ???????????# #?????????????????# | | ?????????????######+## # ###?????????????????# # | | ?????????????????????#?# #???????????????????# # | | ???????????????????????# #???????????????????# # | | ???????????????????????+ +???????????????????# # | | ???????????????????????# #???????????????????# # | | ???????????????????????# #?????????????#+##### # | | ???????????????????????# #?????????????# ##=[# | | ???????????????????????# #????????##+### ##%=# | | ???????????????????????# #####+#### *[= | | ???????????????????????# =[ | | ???????????????????????# % | | ???????????????????????########T#### ## ## | | ??????????????????????????????###### ## ## | | ?????????????????????????????????# !%^ | | ?????????????????????????????????# ^^ | | ?????????????????????????????????# ^^ | | ?????????????????????????????????# ^ | | ?????????????????????????????????### ## ## | | ??????????????????????????######???# ## ## | | ????????????????########??# ????+ | | ????????????????#]]]] !#??# ?????+ ^^ | | ????????????????#]]]] !#??# #?????# [ ^^ | | ???????#######??##### ##??# #?????# ##=%!*## # | +----------------------------------------------------+ Best States ------------- Heat Dissipation 69 Energy Generation 18 Energy Capacity 280 Matter Stores 300 Matter Capacity 300 Sight Range 16 Terrain Scan Range 16 Terrain Scan Density 10 Armor Coverage 600 Evasion (%) 50 Recoil Reduction 4 Offensive Hacking 10 Relay Coupler Types 1 Relay Coupler Value 28 Authchip Count 5 Item Schematics ----------------- Hrd. Heavy Armor Plating | -8/Materials | Scanalyzed Robot Schematics ------------------ None Fabricated ------------ Nothing Alien Tech Used ----------------- None Achievements -------------- Release The Drones! Challenges ------------ None Game ------ Seed BiometalDrainedDriver Manual? 0 Play Time 02:44:23 Cumulative 35.0 hours Start 2024.04.30 @ 14:02:26 End 2024.05.05 @ 18:20:59 Sessions 7 Manual Loads 0 Difficulty Rogue Special Mode None Game No. 44 Rogue 39 Adventurer 5 Explorer 0 Win Type - Total 0 Types 0/0/0/0/0/0/0/0/0 Lore% 26 Gallery% 28 Achievement% 23 Wizard Run 0 Options --------- Layout 2 ASCII 0 Keyboard 0 Movement Mouse Keybinds 0 Fullscreen 2 Font 24/Smallcaps Map View 50x44 Zoom Use 0% Tactical HUD 1 Map Filters NONE Filters NONE Steam 1 RUN: fc17ad57-b4c9-46b2-bbf4-38bd241e4962